Cogmind - Beta 14 @@@ ROGUE MODE // 2025.01.03 @ 18:54:44 Player: lazy_engineer Result: Destroyed by P-80 Master with Gamma Rifle Performance ------------- Evolutions (7) 3500 Regions Visited (17) 3400 Robots Destroyed (106) 530 Value Destroyed (2467) 2467 Prototype IDs (27) 540 Alien Tech Used (0) 0 Bonus (904) 904 TOTAL SCORE: 11341 Bonus ------- High Alert Combat Kills 136 Follower Combat Kills 678 Aligned with FarCom 300 Friendly Fire -210 Cogmind --------- Core Integrity 0/1300 Matter 223/300 Energy 100/100 System Corruption 10% Temperature Cool (0) Movement Hovering (40) Location -3/Research Parts ------- > --- POWER (3) -------- (None) > --- PROPULSION (6) --- Improved Linear Gravjet > --- UTILITY (10) ----- Hacking Suite Hacking Suite > --- WEAPON (2) ------- (None) > --- INVENTORY (5) ---- Q-thruster Advanced Cooling System Advanced ECM Suite Improved Remote Datajack Peak State ------------ > --- POWER ------------ Light Antimatter Reactor > --- PROPULSION ------- Gravmag Array Gyrokinetic Inverter Improved Linear Gravjet Cooled Cesium-ion Thruster > --- UTILITY ---------- Machine Analyzer 0b10 Alert Chip Improved Cloaking Device Hacking Suite Hacking Suite Hacking Suite Hacking Suite Advanced System Shield > --- WEAPON ----------- Power Maul > --- INVENTORY -------- Advanced Cooling System Advanced ECM Suite Advanced Shield Generator Improved Remote Datajack Improved Remote Datajack [Rating: 76] Favorites ----------- Power Light Ion Engine Engine Light Ion Engine Power Core Nuclear Core Reactor Light Antimatter Reactor Propulsion Carbon-fiber Leg Treads Light Treads Leg Carbon-fiber Leg Hover Unit Linear Gravjet Flight Unit Cooled Cesium-ion Thruster Utility Hacking Suite Device Structural Scanner Storage Medium Storage Unit Processor 0b10 Alert Chip Hackware Hacking Suite Protection Improved Light Armor Plating Weapon Improved Assault Rifle Energy Gun Medium Laser Ballistic Gun Improved Assault Rifle Launcher Improved Grenade Launcher Special Weapon Plasma Cutter Impact Weapon Power Maul Build | -11 -10 -10 -9 -9 -9 -8 -8 -7 -7 -7 -6 -5 -5 -4 -4 -4 -3 ------- Run | Yrd Mat Min Mat Min Exi Min Mat Fac Was Fac Fac Fac Ext Fac Upp Upp Res Slots Evolved 14 | . . . 2 . . . 2 2 . . 2 2 . 2 . . 2 Power 2 | . . . . . . . . . . . . 1 . 1 . . . Propulsion 4 | . . . 2 . . . . . . . 2 . . . . . . Utility 8 | . . . . . . . 2 2 . . . 1 . 1 . . 2 Weapon . | . . . . . . . . . . . . . . . . . . Parts Attached 133 | 7 2 12 26 2 2 4 10 11 4 . 10 13 1 7 3 . 19 Power 22 | 1 1 4 2 1 . 1 2 . . . 2 3 . 2 . . 3 Engine 13 | 1 1 4 2 1 . 1 1 . . . 1 1 . . . . . Core 5 | . . . . . . . 1 . . . 1 2 . 1 . . . Reactor 4 | . . . . . . . . . . . . . . 1 . . 3 Propulsion 56 | 2 1 4 17 . . 1 2 3 2 . 2 5 . 3 3 . 11 Treads 21 | 2 . 2 13 . . . . . 2 . 2 . . . . . . Leg 13 | . 1 2 4 . . 1 2 3 . . . . . . . . . Wheel . | . . . . . . . . . . . . . . . . . . Hover 17 | . . . . . . . . . . . . 4 . 3 2 . 8 Flight 5 | . . . . . . . . . . . . 1 . . 1 . 3 Utility 27 | 2 . 1 2 . 1 . 4 3 . . 4 3 1 1 . . 5 Device 11 | 1 . . . . . . 2 . . . . 2 . 1 . . 5 Storage 3 | 1 . . 1 . . . . . . . 1 . . . . . . Processor 6 | . . 1 . . 1 . 2 . . . 1 1 . . . . . Hackware 6 | . . . . . . . . 3 . . 2 . 1 . . . . Protection 1 | . . . 1 . . . . . . . . . . . . . . Artifact . | . . . . . . . . . . . . . . . . . . Weapon 28 | 2 . 3 5 1 1 2 2 5 2 . 2 2 . 1 . . . Energy Gun 2 | 1 . . . . . . . . . . 1 . . . . . . Energy Cannon . | . . . . . . . . . . . . . . . . . . Ballistic Gun 14 | 1 . 2 5 . . 2 1 2 1 . . . . . . . . Ballistic Cannon . | . . . . . . . . . . . . . . . . . . Launcher 2 | . . 1 . . . . . 1 . . . . . . . . . Special Weapon 2 | . . . . . 1 . . . . . . . . 1 . . . Impact Weapon 8 | . . . . 1 . . 1 2 1 . 1 2 . . . . . Slashing Weapon . | . . . . . . . . . . . . . . . . . . Piercing Weapon . | . . . . . . . . . . . . . . . . . . Special Melee Weapon . | . . . . . . . . . . . . . . . . . . Unidentified Prototypes 3 | . . . 1 . . . . . . . . 2 . . . . . Parts Lost 50 | . 2 2 1 . . 1 . . . . 9 . 6 4 6 1 18 Power 11 | . 1 . 1 . . 1 . . . . 3 . 2 2 . . 1 Propulsion 22 | . 1 . . . . . . . . . 3 . 3 . 5 . 10 Utility 13 | . . 1 . . . . . . . . 1 . 1 2 . 1 7 Weapon 4 | . . 1 . . . . . . . . 2 . . . 1 . . Highest Loss Streak 11 | . 2 2 1 . . 1 . . . . 7 . 6 3 3 1 11 To Critical Strikes . | . . . . . . . . . . . . . . . . . . Average Slot Usage (%) 84 | . 97 95 97 100 100 99 94 94 83 84 70 74 77 61 54 31 32 Engine 5 | . 12 13 10 11 11 10 5 . . . . 2 . . . . . Core 2 | . . . . . . . 3 7 7 7 4 5 7 . . . . Treads 11 | . 24 5 40 . . . . . 8 15 14 . . . . . . Leg 13 | . 2 22 1 44 44 44 36 24 5 . . . . . . . . Hover 2 | . . . . . . . . . . . . 16 11 8 13 5 7 Device 3 | . 14 5 . . . . 6 7 7 7 2 4 3 2 5 . 1 Storage 7 | . 14 14 11 11 11 11 9 7 7 7 4 . . . . . . Processor 7 | . . 5 5 . 4 11 15 7 7 7 7 11 11 10 10 10 6 Hackware 9 | . . . . . . . . 22 23 23 23 23 25 26 15 15 11 Protection 1 | . . . 5 11 6 . . . . . . . . . . . . Energy Gun 1 | . 14 5 . . . . . . . . . . . . . . . Ballistic Gun 10 | . 14 15 21 21 . 11 17 10 5 7 4 . . . . . . Launcher 1 | . . 7 . . . . . . 7 7 4 . . . . . . Impact Weapon 2 | . . . . . 11 5 . 4 1 . 1 6 10 5 2 . . Peak Build Rating 76 | 7 7 10 26 26 26 28 34 43 53 53 66 71 67 76 66 33 71 Average Rating 33 | 5 6 7 14 25 24 26 32 39 47 53 54 53 58 59 56 27 37 On Entrance 31 | . 7 6 10 26 24 26 28 34 43 53 53 24 67 39 60 33 26 Naked Turns . | . . . . . . . . . . . . . . . . . . Heaviest Build 51 | 14 14 16 26 26 21 19 24 27 27 27 37 21 21 16 4 1 51 Greatest Support 210 | 40 40 40 83 60 60 60 60 65 140 140 210 28 28 41 31 11 65 Greatest Overweight (x) 2 | . . . 1 . . . . . . . . 2 1 1 . . 1 Average Overweight (x) . | . . . . . . . . . . . . . . . . . . Largest Inventory Capacity 15 | 8 8 8 10 10 10 10 10 10 10 10 15 5 5 5 5 5 5 Average Capacity 8 | 7 8 8 8 10 10 10 10 10 10 10 11 5 5 5 5 5 5 Most Carried 10 | 4 6 8 10 10 10 10 10 10 10 10 10 5 5 5 5 5 5 Average Carried 7 | 1 3 7 8 10 9 10 9 7 9 9 7 3 4 4 5 5 4 Final Capacity 10 | 8 8 8 10 10 10 10 10 10 10 10 5 5 5 5 5 5 5 Final Carried 10 | 2 6 8 10 10 10 10 10 9 9 10 4 5 4 5 5 5 4 Class Distribution -------------------- 31% | Mutant 16% | Hacker-Scout 15% | Scavenger-Mutant 13% | Hacker-Skirmisher 9% | Hacker-Mutant 5% | Scavenger-Skirmisher 3% | Hacker-Assassin Dominant Class ---------------- Mutant | -10/Materials Mutant | -10/Mines Scavenger-Mutant | -9/Materials Mutant | -9/Mines Mutant | -9/Exiles Mutant | -8/Mines Scavenger-Skirmisher | -8/Materials Hacker-Assassin | -7/Factory Hacker-Skirmisher | -7/Waste Hacker-Skirmisher | -7/Factory Hacker-Skirmisher | -6/Factory Hacker-Scout | -5/Factory Hacker-Scout | -5/Extension Hacker-Ninja | -4/Factory Hacker-Mutant | -4/Upper Caves Hacker-Mutant | -4/Upper Caves Hacker-Scout | -3/Research Resources | -11 -10 -10 -9 -9 -9 -8 -8 -7 -7 -7 -6 -5 -5 -4 -4 -4 -3 ----------- Run | Yrd Mat Min Mat Min Exi Min Mat Fac Was Fac Fac Fac Ext Fac Upp Upp Res Matter Collected 2454 | 271 74 175 547 233 . 104 208 115 241 16 276 56 45 53 29 . 11 Remotely 162 | 37 74 51 . . . . . . . . . . . . . . . Salvage Created 3544 | 92 372 256 1377 281 . 49 259 115 213 16 335 53 20 53 53 . . Parts 215 | 2 30 10 89 20 . 4 23 6 2 2 15 5 . 2 5 . . Haulers Intercepted 6 | . 1 . 3 . . . 2 . . . . . . . . . . Recyclers Shooed 3 | . . . 2 . . 1 . . . . . . . . . . . Parts Field Recycled . | . . . . . . . . . . . . . . . . . . Retrieved Matter . | . . . . . . . . . . . . . . . . . . Parts Self-Destructed 4 | . . . . . . . . . . . . . . . 4 . . Prevented . | . . . . . . . . . . . . . . . . . . Kills | -11 -10 -10 -9 -9 -9 -8 -8 -7 -7 -7 -6 -5 -5 -4 -4 -4 -3 ------- Run | Yrd Mat Min Mat Min Exi Min Mat Fac Was Fac Fac Fac Ext Fac Upp Upp Res Combat Hostiles Destroyed 67 | . 4 8 22 9 . 3 8 2 . . 10 . . . 1 . . Melee 1 | . . . . . . . . . . . . . . . 1 . . Guns 58 | . 4 6 22 9 . 3 8 2 . . 4 . . . . . . AOE 8 | . . 2 . . . . . . . . 6 . . . . . . Classes Destroyed 15 | 1 6 1 3 . . . 1 1 . . 1 . . 1 . . . Worker 9 | . . . 2 1 . . . . . 1 . 3 . 2 . . . Builder 7 | . 2 2 1 1 . . . . . . . . . 1 . . . Tunneler 1 | . . . . . . . . . . . . . . 1 . . . Hauler 6 | . 1 . 3 . . . 2 . . . . . . . . . . Recycler 5 | 1 2 . 1 1 . . . . . . . . . . . . . Mechanic 1 | . 1 . . . . . . . . . . . . . . . . Operator 2 | . . . 2 . . . . . . . . . . . . . . Watcher 7 | . 1 . 5 . . . . . . . . . 1 . . . . Swarmer 32 | . 3 3 4 8 . 3 7 . . . 4 . . . . . . Grunt 23 | . 1 4 11 1 . . . . . . 6 . . . . . . Brawler 1 | . . . 1 . . . . . . . . . . . . . . Duelist 1 | . . . . . . . . . . . 1 . . . . . . Sentry 8 | . . 1 6 . . . . 1 . . . . . . . . . Hunter 1 | . . . . . . . 1 . . . . . . . . . . Programmer 2 | . . . . . . . . 1 . . . . . . 1 . . Best Kill Streak 8 | 1 6 5 8 4 . 3 7 1 . 1 4 2 1 2 1 . . Combat Bots Only 8 | . 3 5 8 4 . 3 7 1 . . 4 . . . 1 . . Max Kills in Single Turn 5 | 1 1 2 2 1 . 2 2 1 . 1 5 1 1 1 1 . . Gunslinging 1 | . . . 1 . . 1 1 . . . . . . . . . . Exploded 4 | . . 2 . . . . . . . . 4 . . . . . . Melee 1 | . . . . . . . . . . . . . . . 1 . . Uniques/NPCs Destroyed . | . . . . . . . . . . . . . . . . . . Combat | -11 -10 -10 -9 -9 -9 -8 -8 -7 -7 -7 -6 -5 -5 -4 -4 -4 -3 -------- Run | Yrd Mat Min Mat Min Exi Min Mat Fac Was Fac Fac Fac Ext Fac Upp Upp Res Hostile Shots Fired 985 | . 52 52 157 49 . 10 67 33 . 2 116 4 76 59 72 38 198 Missed 343 | . 11 19 30 15 . 1 20 9 . . 23 3 34 33 44 15 86 Damage Taken 10756 | . 432 398 1579 277 . 69 466 209 . 376 2116 18 981 522 489 339 2485 Core 3303 | . 54 120 272 25 . 17 81 5 . . 348 . 432 158 205 279 1307 Absorbed by Shields 102 | . . . . . . . . . . . . . . . . . 102 Reduced by Siege Mode 212 | . . . . . . . . . . . 212 . . . . . . Regen/Repaired (Parts) 574 | . . . . . . . . . 97 197 280 . . . . . . Core Remaining (%) 61 | 100 . 30 . . . 21 85 . . 99 59 . 56 . . 44 . Volleys Fired 308 | 1 49 37 111 27 . 7 25 6 . 4 40 . . 1 . . . Largest 2 | 2 2 2 2 2 . 2 2 2 . 2 2 . . 1 . . . Hottest 80 | 70 70 80 46 46 . 46 46 46 . 59 69 . . 7 . . . Shots Fired 538 | 2 78 55 221 53 . 14 50 12 . 7 45 . . 1 . . . Gun 526 | 2 78 53 221 53 . 14 50 12 . 4 39 . . . . . . Cannon . | . . . . . . . . . . . . . . . . . . Launcher 11 | . . 2 . . . . . . . 3 6 . . . . . . Special 1 | . . . . . . . . . . . . . . 1 . . . Kinetic 473 | 1 49 33 221 53 . 14 50 12 . 4 36 . . . . . . Thermal 53 | 1 29 20 . . . . . . . . 3 . . . . . . Explosive 11 | . . 2 . . . . . . . 3 6 . . . . . . Electromagnetic . | . . . . . . . . . . . . . . . . . . Robot Hit Streak 35 | 2 8 12 35 7 . 10 27 8 . 4 22 . . 23 . . . Robot Miss Streak 5 | . 4 3 5 4 . 3 3 1 . 1 1 . . . . . . Penetration Max . | . . . . . . . . . . . . . . . . . . Secondary Targets 10 | . 1 1 2 2 . 1 3 . . . . . . . . . . Max Gunslinging Chain 1 | . 1 1 1 1 . 1 1 . . . . . . . . . . Shots Hit Robots 396 | 2 45 36 151 31 . 10 38 10 11 2 42 3 8 6 1 . . Core Hits 183 | 2 22 20 67 12 . 4 14 5 . 6 29 2 . . . . . Critical Kills 1 | . . . . . . . . . . . . 1 . . . . . Critical Parts Destroyed 5 | . 1 . . . . . . . . . . . 2 1 1 . . Critical Strikes 12 | . 2 4 . . . . . . . . 1 1 2 1 1 . . Burn 6 | . 1 4 . . . . . . . . 1 . . . . . . Destroy 1 | . 1 . . . . . . . . . . . . . . . . Smash 5 | . . . . . . . . . . . . 1 2 1 1 . . Melee Attacks 89 | . . . . 3 . . 1 3 11 . 15 21 12 22 1 . . Impact 89 | . . . . 3 . . 1 3 11 . 15 21 12 22 1 . . Slashing . | . . . . . . . . . . . . . . . . . . Piercing . | . . . . . . . . . . . . . . . . . . Sneak Attacks 7 | . . . . . . . . . . . . 3 . 4 . . . Combat Hostiles . | . . . . . . . . . . . . . . . . . . Follow-up Attacks . | . . . . . . . . . . . . . . . . . . Damage Inflicted 7631 | 19 430 449 1767 469 . 149 521 153 778 133 1455 225 440 496 35 4 108 Guns 4418 | 19 430 329 1757 469 . 149 521 153 . 23 568 . . . . . . Cannons . | . . . . . . . . . . . . . . . . . . Explosions 1117 | . . 120 . . . . . . . 110 887 . . . . . . Melee 1957 | . . . . . . . . . 778 . . 225 423 496 35 . . Ramming 139 | . . . 10 . . . . . . . . . 17 . . 4 108 Kinetic 4003 | 7 256 156 1757 469 . 149 521 153 . 23 512 . . . . . . Thermal 500 | 12 174 173 . . . . . . . . 141 . . . . . . Explosive 1032 | . . 120 . . . . . . . 110 802 . . . . . . Electromagnetic . | . . . . . . . . . . . . . . . . . . Impact 1957 | . . . . . . . . . 778 . . 225 423 496 35 . . Slashing . | . . . . . . . . . . . . . . . . . . Piercing . | . . . . . . . . . . . . . . . . . . Highest Corruption 10 | . 3 3 3 3 3 3 . . . 1 . . . . 1 1 10 Average Corruption 2 | . 2 3 2 3 3 3 . . . 1 . . . . 1 1 7 Corruption Purged . | . . . . . . . . . . . . . . . . . . Corruption Blocked . | . . . . . . . . . . . . . . . . . . Effects 55 | . 7 12 15 7 3 7 . . . . . . . . 2 1 1 Message Errors 12 | . 2 3 4 . . 1 . . . . . . . . 1 1 . Matter Fused 14 | . 2 2 1 2 1 5 . . . . . . . . . . 1 Heat Flow Errors 6 | . 2 1 2 . 1 . . . . . . . . . . . . Energy Discharges 4 | . . 1 1 1 . 1 . . . . . . . . . . . Parts Rejected 2 | . 1 . 1 . . . . . . . . . . . . . . Parts Fused 2 | . . . 1 . . . . . . . . . . . 1 . . Data Loss (minor) 8 | . . 5 1 2 . . . . . . . . . . . . . Data Loss (major) 1 | . . . . . 1 . . . . . . . . . . . . Misfires 1 | . . . 1 . . . . . . . . . . . . . . Alerts 2 | . . . 1 1 . . . . . . . . . . . . . Weapon Failures 3 | . . . 2 1 . . . . . . . . . . . . . Overload Shots . | . . . . . . . . . . . . . . . . . . Overflow Damage 770 | . . . . . . . . . 27 . 33 77 225 353 35 . 20 Projectiles . | . . . . . . . . . . . . . . . . . . Explosions 33 | . . . . . . . . . . . 33 . . . . . . Melee 737 | . . . . . . . . . 27 . . 77 225 353 35 . 20 Knockbacks 5 | . . . . . . . . . . . . . 3 1 . . 1 Impact 5 | . . . . . . . . . . . . . 3 1 . . 1 Kinetic . | . . . . . . . . . . . . . . . . . . Secondary . | . . . . . . . . . . . . . . . . . . Self-Inflicted Damage 284 | . . 14 . . . . . . . 56 152 . 7 . . 2 53 Shots 6 | . . 2 . . . . . . . 1 3 . . . . . . Rammed 13 | . . . 2 . . . . . . . . . 3 . . 1 7 Targets Rammed 14 | . . . 3 . . . . . . . . . 3 . . 1 7 Kicked . | . . . . . . . . . . . . . . . . . . Crushed 1 | . . . 1 . . . . . . . . . . . . . . Highest Temperature 286 | 30 286 194 242 . 123 . . . . . 62 . 1 . . . 180 Average Temperature 61 | 18 66 61 53 . 63 . . . . . 24 . 1 . . . 89 Received Heat Transfer 2093 | . 117 135 543 . . . . 30 . . 807 9 114 117 48 . 173 Effects 1 | . 1 . . . . . . . . . . . . . . . . Interference 1 | . 1 . . . . . . . . . . . . . . . . Siege Activations 3 | . . . . . . . . . . . 3 . . . . . . Total Turns 83 | . . . . . . . . . . . 83 . . . . . . Longest Duration 43 | . . . . . . . . . . . 43 . . . . . . Robots Corrupted 3 | . . . . . . . . . 1 . . . 1 1 . . . Combat Hostiles 1 | . . . . . . . . . 1 . . . . . . . . Parts Fried 7 | . . . . . . . . . . . . 1 2 4 . . . Impact Corruptions 22 | . . . . . . . . . 1 . . 1 10 8 1 . 1 Robots Melted . | . . . . . . . . . . . . . . . . . . Combat Hostiles . | . . . . . . . . . . . . . . . . . . Parts Melted 5 | . 2 3 . . . . . . . . . . . . . . . Heat Transferred 1678 | 37 592 814 . . . . . . . . 235 . . . . . . Parts Sabotaged . | . . . . . . . . . . . . . . . . . . Parts Stolen . | . . . . . . . . . . . . . . . . . . Parts Stripped . | . . . . . . . . . . . . . . . . . . Power Chain Reactions . | . . . . . . . . . . . . . . . . . . Alert | -11 -10 -10 -9 -9 -9 -8 -8 -7 -7 -7 -6 -5 -5 -4 -4 -4 -3 ------- Run | Yrd Mat Min Mat Min Exi Min Mat Fac Was Fac Fac Fac Ext Fac Upp Upp Res Peak Influence 805 | 5 164 192 542 267 . 46 165 156 54 549 805 265 64 176 . . 605 Initial 233 | . 3 . 24 142 . . 17 74 54 37 196 148 19 25 . . 233 Average 210 | 3 71 73 372 188 . 13 66 113 54 208 478 169 26 94 . . 306 Maximum Alert Level 3 | . . . 2 1 . . . . . 2 3 1 . . . . 2 Low Security (%) 64 | 100 100 100 9 68 . 100 100 100 100 63 28 75 100 100 . . 6 Level 1 16 | . . . 39 31 . . . . . 14 9 24 . . . . 75 Level 2 16 | . . . 51 . . . . . . 21 43 . . . . . 17 Level 3 2 | . . . . . . . . . . . 17 . . . . . . Level 4 . | . . . . . . . . . . . . . . . . . . Level 5 . | . . . . . . . . . . . . . . . . . . High Security . | . . . . . . . . . . . . . . . . . . Max Security . | . . . . . . . . . . . . . . . . . . Squads Dispatched 26 | . . . 4 1 . . 2 2 . 5 4 1 . 3 . . 4 Investigation 13 | . . . 2 1 . . 1 1 . 3 1 1 . 2 . . 1 Extermination 5 | . . . . . . . . 1 . 1 2 . . . . . 1 Reinforcement 8 | . . . 2 . . . 1 . . 1 1 . . 1 . . 2 Assault . | . . . . . . . . . . . . . . . . . . Garrison . | . . . . . . . . . . . . . . . . . . Intercept . | . . . . . . . . . . . . . . . . . . Searches Triggered . | . . . . . . . . . . . . . . . . . . Construction Impeded . | . . . . . . . . . . . . . . . . . . Haulers Reinforced . | . . . . . . . . . . . . . . . . . . Active Scanning Responses . | . . . . . . . . . . . . . . . . . . Cargo Convoy Interrupts . | . . . . . . . . . . . . . . . . . . Stealth | -11 -10 -10 -9 -9 -9 -8 -8 -7 -7 -7 -6 -5 -5 -4 -4 -4 -3 --------- Run | Yrd Mat Min Mat Min Exi Min Mat Fac Was Fac Fac Fac Ext Fac Upp Upp Res Distress Signals 8 | . . . 1 . . . 1 . . 1 . 1 1 . . . 3 Communications Jammed . | . . . . . . . . . . . . . . . . . . Distress Signals . | . . . . . . . . . . . . . . . . . . Times Spotted 248 | . 13 10 42 9 . 3 14 3 . 7 27 9 19 16 31 6 39 Peak Tracking Total 16 | . 4 3 7 4 . 3 8 1 . 4 5 4 13 8 12 4 16 Tactical Retreats 32 | . 1 . 2 . . . 1 . . . 2 2 1 4 7 1 11 Traps | -11 -10 -10 -9 -9 -9 -8 -8 -7 -7 -7 -6 -5 -5 -4 -4 -4 -3 ------- Run | Yrd Mat Min Mat Min Exi Min Mat Fac Was Fac Fac Fac Ext Fac Upp Upp Res Traps Triggered 10 | . 3 . 2 . . . 1 2 . . 1 1 . . . . . Indirectly . | . . . . . . . . . . . . . . . . . . Trap Hack Attempts . | . . . . . . . . . . . . . . . . . . Triggered . | . . . . . . . . . . . . . . . . . . Disarmed 1 | . . . . . . . . . . . . 1 . . . . . Reprogrammed . | . . . . . . . . . . . . . . . . . . Reused . | . . . . . . . . . . . . . . . . . . Traps Extracted . | . . . . . . . . . . . . . . . . . . Installed . | . . . . . . . . . . . . . . . . . . Triggered 2 | . . . . . . . . . . . . . . . 2 . . Machines | -11 -10 -10 -9 -9 -9 -8 -8 -7 -7 -7 -6 -5 -5 -4 -4 -4 -3 ---------- Run | Yrd Mat Min Mat Min Exi Min Mat Fac Was Fac Fac Fac Ext Fac Upp Upp Res Machines Disabled 31 | . . 1 . 1 . . 2 . . 8 18 . 1 . . . . Max in Single Turn 4 | . . . . 1 . . 1 . . . 4 . . . . . . Garrison Access 2 | . . . . . . . . . . . . 2 . . . . . Machines Repaired . | . . . . . . . . . . . . . . . . . . Machines Dismantled . | . . . . . . . . . . . . . . . . . . Machines Sabotaged . | . . . . . . . . . . . . . . . . . . Overloaded Fab Kills . | . . . . . . . . . . . . . . . . . . Hacking | -11 -10 -10 -9 -9 -9 -8 -8 -7 -7 -7 -6 -5 -5 -4 -4 -4 -3 --------- Run | Yrd Mat Min Mat Min Exi Min Mat Fac Was Fac Fac Fac Ext Fac Upp Upp Res Machines Accessed 50 | . 2 . 6 1 1 . 1 2 . 3 7 13 7 4 1 . 2 Terminals 36 | . 2 . 4 1 . . 1 1 . 1 4 9 7 4 1 . 1 Fabricators 6 | . . . . . . . . . . 2 2 1 . . . . 1 Repair Stations 1 | . . . . . . . . . . . 1 . . . . . . Recycling Units 3 | . . . 2 . . . . . . . . 1 . . . . . Scanalyzers 1 | . . . . . . . . 1 . . . . . . . . . Garrison Access 2 | . . . . . . . . . . . . 2 . . . . . Total Hacks 126 | . 8 . 17 3 1 . 3 4 . 10 15 30 10 19 3 . 3 Successful 71 | . 5 . 7 1 1 . . 3 . 4 9 21 5 10 3 . 2 Failed 54 | . 3 . 10 2 . . 3 1 . 6 6 9 5 8 . . 1 Catastrophic 7 | . . . 3 1 . . . . . 1 1 . 1 . . . . Database Lockouts 1 | . . . . . . . . . . . . . . 1 . . . Manual 67 | . 4 . 13 3 1 . 3 2 . 3 10 16 5 6 . . 1 Terminals 97 | . 8 . 11 3 . . 3 2 . 4 9 24 10 19 3 . 1 Fabricators 13 | . . . . . . . . . . 6 4 1 . . . . 2 Repair Stations 2 | . . . . . . . . . . . 2 . . . . . . Recycling Units 9 | . . . 6 . . . . . . . . 3 . . . . . Scanalyzers 2 | . . . . . . . . 2 . . . . . . . . . Garrison Access 2 | . . . . . . . . . . . . 2 . . . . . Terminal Hacks 37 | . 3 . . 1 1 . . . . 2 4 12 4 7 3 . . Record 9 | . . . . . . . . . . . . 3 . 3 3 . . Part Schematic 4 | . . . . 1 . . . . . 1 . 2 . . . . . Open Door 4 | . . . . . . . . . . . . 1 3 . . . . Level Access Points 1 | . . . . . . . . . . . . 1 . . . . . Branch Access Points 2 | . 1 . . . . . . . . . . 1 . . . . . Scanalyzer Index 1 | . . . . . . . . . . 1 . . . . . . . Alert Level 1 | . 1 . . . . . . . . . . . . . . . . Unreport Threat 3 | . . . . . . . . . . . 2 1 . . . . . Locate Traps 1 | . . . . . . . . . . . . 1 . . . . . Disarm Traps 1 | . . . . . . . . . . . . 1 . . . . . Recall Investigation 2 | . . . . . . . . . . . 1 . . 1 . . . Recall Reinforcements 1 | . . . . . . . . . . . 1 . . . . . . Hauler Manifests 1 | . . . . . . . . . . . . . . 1 . . . Zone Layout 5 | . 1 . . . . . . . . . . 1 1 2 . . . Derelict Proto ID Bank 1 | . . . . . 1 . . . . . . . . . . . . Fabricator Hacks 7 | . . . . . . . . . . 2 2 1 . . . . 2 Network Status 2 | . . . . . . . . . . . 1 1 . . . . . Load Schematic 1 | . . . . . . . . . . . . . . . . . 1 Build 4 | . . . . . . . . . . 2 1 . . . . . 1 Repair Station Hacks 2 | . . . . . . . . . . . 2 . . . . . . Scan Component 1 | . . . . . . . . . . . 1 . . . . . . Repair 1 | . . . . . . . . . . . 1 . . . . . . Recycling Unit Hacks 1 | . . . 1 . . . . . . . . . . . . . . Retrieve Components 1 | . . . 1 . . . . . . . . . . . . . . Scanalyzer 2 | . . . . . . . . 2 . . . . . . . . . Insert Component 1 | . . . . . . . . 1 . . . . . . . . . Analyze 1 | . . . . . . . . 1 . . . . . . . . . Garrison Access Hacks 2 | . . . . . . . . . . . . 2 . . . . . Seal Access 2 | . . . . . . . . . . . . 2 . . . . . Unauthorized Hacks 20 | . 2 . 6 . . . . 1 . . 1 6 1 3 . . . Terminals 14 | . 2 . 3 . . . . 1 . . . 4 1 3 . . . Track 3 | . . . . . . . . . . . . 2 . 1 . . . Assimilate 3 | . . . . . . . . 1 . . . 1 1 . . . . Botnet 3 | . 1 . 1 . . . . . . . . . . 1 . . . Operators 5 | . 1 . 2 . . . . . . . . 1 . 1 . . . Fabricators 1 | . . . . . . . . . . . 1 . . . . . . Download 1 | . . . . . . . . . . . 1 . . . . . . Repair Stations . | . . . . . . . . . . . . . . . . . . Recycling Units 5 | . . . 3 . . . . . . . . 2 . . . . . Monitor 1 | . . . 1 . . . . . . . . . . . . . . Reject 2 | . . . 1 . . . . . . . . 1 . . . . . Mask 2 | . . . 1 . . . . . . . . 1 . . . . . Scanalyzers . | . . . . . . . . . . . . . . . . . . Garrison Access . | . . . . . . . . . . . . . . . . . . Data Cores Recovered 1 | . . . . . . . . . . . . . 1 . . . . Used . | . . . . . . . . . . . . . . . . . . Hacking Detections 37 | . 2 . 4 1 . . 1 2 . 3 5 8 4 4 1 . 2 Full Trace Events 12 | . 1 . 2 1 . . . . . 3 . 1 . 2 1 . 1 Feedback Events 1 | . . . . . . . . . . 1 . . . . . . . Corruption 1 | . . . . . . . . . . 1 . . . . . . . Feedback Blocked . | . . . . . . . . . . . . . . . . . . Robot Schematics Acquired . | . . . . . . . . . . . . . . . . . . Robots Built 6 | . . . . . . . . . . 6 . . . . . . . Authchips . | . . . . . . . . . . . . . . . . . . Time 125 | . . . . . . . . . . 125 . . . . . . . Total Robot Build Rating 21 | . . . . . . . . . . 21 . . . . . . . Part Schematics Acquired 5 | . . . . 1 . . . 1 . 1 . 2 . . . . . Parts Built 3 | . . . . . . . . . . . 2 . . . . . 1 Authchips . | . . . . . . . . . . . . . . . . . . Time 129 | . . . . . . . . . . . 53 . . . . . 76 Total Part Build Rating 17 | . . . . . . . . . . . 12 . . . . . 5 Parts Repaired 1 | . . . . . . . . . . . 1 . . . . . . Time 56 | . . . . . . . . . . . 56 . . . . . . Parts Recycled . | . . . . . . . . . . . . . . . . . . Recycled Matter . | . . . . . . . . . . . . . . . . . . Retrieved Matter . | . . . . . . . . . . . . . . . . . . Retrieved Components 3 | . . . 3 . . . . . . . . . . . . . . Parts Scanalyzed 1 | . . . . . . . . 1 . . . . . . . . . Part Schematics Acquired 1 | . . . . . . . . 1 . . . . . . . . . Parts Damaged . | . . . . . . . . . . . . . . . . . . Bothacking | -11 -10 -10 -9 -9 -9 -8 -8 -7 -7 -7 -6 -5 -5 -4 -4 -4 -3 ------------ Run | Yrd Mat Min Mat Min Exi Min Mat Fac Was Fac Fac Fac Ext Fac Upp Upp Res Used RIF Installer . | . . . . . . . . . . . . . . . . . . Robots Hacked 1 | . . . . . . . . . . . . . . 1 . . . Non-combat 1 | . . . . . . . . . . . . . . 1 . . . Combat . | . . . . . . . . . . . . . . . . . . Robot Hacks Applied 1 | . . . . . . . . . . . . . . 1 . . . no_distress 1 | . . . . . . . . . . . . . . 1 . . . Relay Couplers Released . | . . . . . . . . . . . . . . . . . . Fabnet Peak Effective % . | . . . . . . . . . . . . . . . . . . Robots Rewired . | . . . . . . . . . . . . . . . . . . Allies Hacked 1 | . . . . . . . . . . . . . 1 . . . . Hacks Repelled . | . . . . . . . . . . . . . . . . . . Allies | -11 -10 -10 -9 -9 -9 -8 -8 -7 -7 -7 -6 -5 -5 -4 -4 -4 -3 -------- Run | Yrd Mat Min Mat Min Exi Min Mat Fac Was Fac Fac Fac Ext Fac Upp Upp Res Total Allies 34 | . . 3 . 1 . . . 1 20 6 . 1 2 . . . . Largest Group 24 | . . 3 . 1 1 . . 1 21 24 12 1 2 . . . . Highest-Rated Group 632 | . . 40 . 31 31 . . 26 542 632 303 26 70 . . . . Highest-Rated Ally 39 | . . 16 . 31 31 . . 26 35 35 35 26 39 . . . . Total Orders . | . . . . . . . . . . . . . . . . . . Ally Attacks 131 | . . 20 . 4 . . . . . 71 20 . 16 . . . . Total Damage 5447 | . . 222 . 64 . . . . . 2497 2227 . 437 . . . . Kills 43 | . . 4 . . . . . . . 21 17 . 1 . . . . Allies Corrupted . | . . . . . . . . . . . . . . . . . . Allies Melted . | . . . . . . . . . . . . . . . . . . Intel | -11 -10 -10 -9 -9 -9 -8 -8 -7 -7 -7 -6 -5 -5 -4 -4 -4 -3 ------- Run | Yrd Mat Min Mat Min Exi Min Mat Fac Was Fac Fac Fac Ext Fac Upp Upp Res Robot Analysis Total . | . . . . . . . . . . . . . . . . . . Derelict Logs Recovered 3 | . . . . 1 . . . . . . . . . . 2 . . Drone Launches . | . . . . . . . . . . . . . . . . . . Drone Recoveries . | . . . . . . . . . . . . . . . . . . Exploration | -11 -10 -10 -9 -9 -9 -8 -8 -7 -7 -7 -6 -5 -5 -4 -4 -4 -3 ------------- Run | Yrd Mat Min Mat Min Exi Min Mat Fac Was Fac Fac Fac Ext Fac Upp Upp Res Turns Passed 8000 | 84 427 701 1243 585 262 389 680 337 169 414 1028 426 204 365 246 40 400 Spaces Moved 6528 | 52 189 447 511 405 213 299 380 226 86 168 617 824 399 418 623 56 615 Core 343 | 15 . . . . . . . . . . 293 32 3 . . . . Treads 1317 | 37 189 66 482 . . . . . 51 168 324 . . . . . . Legs 1968 | . . 381 29 405 213 299 380 226 35 . . . . . . . . Wheels . | . . . . . . . . . . . . . . . . . . Hover 1886 | . . . . . . . . . . . . 790 317 244 147 56 332 Flight 1014 | . . . . . . . . . . . . 2 79 174 476 . 283 Fastest Speed 35 | 50 160 120 120 120 120 120 120 120 130 160 50 36 35 35 35 70 35 Average Speed 90 | 128 160 125 157 120 120 120 120 124 149 160 107 38 37 46 38 70 52 Slowest Speed 195 | 160 160 160 190 120 120 120 120 130 160 160 160 195 100 115 70 70 111 Overloaded Moves . | . . . . . . . . . . . . . . . . . . Propulsion Burnouts . | . . . . . . . . . . . . . . . . . . Robots Hopped 4 | . . . . . . . . . . . . . . . . . 4 Cave-ins Triggered . | . . . . . . . . . . . . . . . . . . Exploration Rate (%) 38 | 4 43 69 47 68 61 63 30 10 67 8 24 24 49 15 82 11 21 Regions Visited 17 Branch Regions 7 Pre-discovered Areas 3 | . . . . 2 . . . . . . . . . . 1 . . Known Exits Taken 5 | . 1 1 . . . . 1 . . . . 1 1 . . . . Unknown Exits Taken 10 | 1 . . 1 1 1 1 . . . 1 1 . . 1 1 1 . Scrap Searched 4 | . . 1 . . . 1 . . . . . . . . 1 1 . Spaces Dug 37 | . . . . . . . 1 3 . . 11 13 1 8 . . . Terrain Destroyed 145 | . . 23 . . . . 1 3 . 27 69 13 1 8 . . . Melee 37 | . . . . . . . 1 3 . . 11 13 1 8 . . . Projectile . | . . . . . . . . . . . . . . . . . . AOE 108 | . . 23 . . . . . . . 27 58 . . . . . . Terrain Rammed . | . . . . . . . . . . . . . . . . . . Walls Destroyed . | . . . . . . . . . . . . . . . . . . Machines Disabled . | . . . . . . . . . . . . . . . . . . Actions | -11 -10 -10 -9 -9 -9 -8 -8 -7 -7 -7 -6 -5 -5 -4 -4 -4 -3 --------- Run | Yrd Mat Min Mat Min Exi Min Mat Fac Was Fac Fac Fac Ext Fac Upp Upp Res Total 7962 | 68 246 538 757 445 218 314 552 265 111 307 909 890 429 542 627 56 688 Wait 736 | . 1 21 68 8 . 4 127 9 2 133 201 20 12 93 . . 37 Move 6504 | 51 188 446 510 404 212 298 379 226 85 167 616 823 398 417 622 55 607 Hop 4 | . . . . . . . . . . . . . . . . . 4 Pick Up 78 | 9 6 13 11 . 1 . 3 5 3 2 7 7 1 1 . . 9 Fast Attach 44 | . . 1 11 1 1 1 5 . . . . 8 . 6 2 . 8 Attach 47 | 7 2 5 2 . 1 . . 4 2 . 8 4 1 1 . . 10 Detach 3 | . . . . . . . . . . . 1 . . 1 . . 1 Swap 42 | . . 6 13 1 . 3 5 7 2 . 2 1 . . 1 . 1 Drop 76 | . . 9 28 1 2 1 7 5 5 1 4 6 2 . 1 . 4 Fire 308 | 1 49 37 111 27 . 7 25 6 . 4 40 . . 1 . . . Melee 88 | . . . . 3 . . 1 3 11 . 15 21 11 22 1 . . Ram 11 | . . . . . . . . . . . . . 3 . . 1 7 Kick . | . . . . . . . . . . . . . . . . . . Crush 3 | . . . 3 . . . . . . . . . . . . . . Escape Stasis 15 | . . . . . . . . . . . 15 . . . . . . Rewire 2 | . . . . . . . . . 1 . . . 1 . . . . Trap . | . . . . . . . . . . . . . . . . . . Miscellaneous 1 | . . . . . 1 . . . . . . . . . . . . Route ------- -11/Scrapyard -10/Materials (discovered 3 exits: *Mat / *Min x2) -10/Mines (discovered 2 exits: *Mat x2) -9/Materials (discovered 2 exits: *Mat / *Min) -9/Mines (discovered 2 exits: *Mat / *Exi) -9/Exiles -8/Mines -8/Materials -7/Factory -7/Waste -7/Factory -6/Factory -5/Factory (discovered 8 exits: Fac x4 / Upp x2 / *Ext x2) -5/Extension -4/Factory -4/Upper Caves -4/Upper Caves -3/Research History --------- Turn | Location | Event 6 | -11/Scrapyard | Discovered new exit (range 14) 85 | -11/Scrapyard | Entered Materials 314 | -10/Materials | Build established: Mutant 315 | -10/Materials | Identified exit to Mines 352 | -10/Materials | Discovered new exit (range 12) 512 | -10/Materials | Entered Mines 519 | -10/Mines | Met a Derelict bent on vengeance 575 | -10/Mines | Found DCF Scrap (14 items) 752 | -10/Mines | Core integrity fell below 50% 930 | -10/Mines | Assisted by bots powering up and referring to "LRC-V3" 948 | -10/Mines | Discovered new exit (range 14) 964 | -10/Mines | Identified exit to Materials 1197 | -10/Mines | Discovered exit to Materials (range 7) 1213 | -10/Mines | Entered Materials 1213 | -9/Materials | Evolved 2 slots: Propulsion x2 1356 | -9/Materials | Destroyed 8 combat bots 1429 | -9/Materials | Build established: Scavenger-Mutant 1597 | -9/Materials | Core integrity fell below 50% 1926 | -9/Materials | Discovered new exit (range 16) 2369 | -9/Materials | Discovered new exit (range 8) 2456 | -9/Materials | Entered Mines 2637 | -9/Mines | Build established: Mutant 2812 | -9/Mines | Found a damaged Exp. Sensor Array with a note attached 2834 | -9/Mines | Escorted by a lone wolf Derelict 2866 | -9/Mines | Learned location of Storage (-7) 2876 | -9/Mines | Discovered new exit (range 9) 2985 | -9/Mines | Learned location of Zion (-7) 3001 | -9/Mines | Deemed a non-threat by the Exiles lab entrance 3001 | -9/Mines | Discovered new exit (range 5) 3015 | -9/Mines | Excavation squad dispatched 3015 | -9/Mines | A large section of the Mines collapsed 3041 | -9/Mines | Entered Exiles 3041 | -9/Exiles | Accompanied by 1 ally 3073 | -9/Exiles | Met 8R-AWN 3094 | -9/Exiles | Met EX-HEX 3129 | -9/Exiles | Met EX-BIN 3152 | -9/Exiles | Aligned with FarCom system 3153 | -9/Exiles | Given EX-Vault access code 3184 | -9/Exiles | Opened EX-Vault 3193 | -9/Exiles | Found 0b10 Alert Chip 3217 | -9/Exiles | Warned to stay clear of 0b10 Research branches 3252 | -9/Exiles | Met EX-DEC 3294 | -9/Exiles | Discovered new exit (range 10) 3303 | -9/Exiles | Left Exiles lab with 0b10 Alert Chip 3303 | -9/Exiles | Entered Mines 3662 | -8/Mines | Discovered new exit (range 8) 3692 | -8/Mines | Entered Materials 3692 | -8/Materials | Evolved 2 slots: Utility x2 4227 | -8/Materials | Build established: Scavenger-Skirmisher 4255 | -8/Materials | Destroyed 7 combat bots 4364 | -8/Materials | Discovered new exit (range 7) 4371 | -8/Materials | Identified exit to Factory 4372 | -8/Materials | Entered Factory 4372 | -7/Factory | Evolved 2 slots: Utility x2 4709 | -7/Factory | Sucked down chute 4709 | -7/Factory | Entered Waste 4710 | -7/Waste | Joined by Warlord forces that had cleared the area 4719 | -7/Waste | 1 allies followed down the chute 4812 | -7/Waste | Discovered new exit (range 13) 4878 | -7/Waste | Entered Factory 4878 | -7/Factory | Accompanied by 21 allies 5108 | -7/Factory | Fabricated L-41 Fighter (x3) 5148 | -7/Factory | Discovered new exit (range 16) 5171 | -7/Factory | Build established: Hacker-Skirmisher 5171 | -7/Factory | Lost 13 allies 5251 | -7/Factory | Fabricated G-47 Trooper (x3) 5292 | -7/Factory | Entered another Factory area 5292 | -6/Factory | Accompanied by 12 allies 5292 | -6/Factory | Evolved 2 slots: Propulsion x2 5400 | -6/Factory | Repaired Hvy. Treads 5682 | -6/Factory | Fabricated Adv. Shield Generator (x2) 5696 | -6/Factory | Lost 8 allies 5784 | -6/Factory | Lost 3 allies 6010 | -6/Factory | Build established: Hacker-Mutant 6138 | -6/Factory | Lost 7 parts (1p3n1u2w) 6298 | -6/Factory | Discovered new exit (range 15) 6320 | -6/Factory | Entered another Factory area 6320 | -5/Factory | Evolved 2 slots: Power x1, Utility x1 6374 | -5/Factory | Build established: Hacker-Scout 6648 | -5/Factory | Identified exit to Factory 6648 | -5/Factory | Identified exit to Upper Caves 6648 | -5/Factory | Identified exit to Extension 6746 | -5/Factory | Entered Extension 6797 | -5/Extension | Spotted B-75 Beast 6920 | -5/Extension | Rescued a captive Derelict 6922 | -5/Extension | Rescued a captive Derelict 6925 | -5/Extension | Lost 6 parts (2p3n1u) 6939 | -5/Extension | Spotted B-75 Beast 6949 | -5/Extension | Discovered exit to Factory (range 3) 6950 | -5/Extension | Entered Factory 6950 | -4/Factory | Evolved 2 slots: Power x1, Utility x1 7050 | -4/Factory | Central database locked down 7306 | -4/Factory | Discovered new exit (range 16) 7315 | -4/Factory | Entered Upper Caves 7345 | -4/Upper Caves | Lost 3 parts (1p2u) 7353 | -4/Upper Caves | Learned Research trap positions 7488 | -4/Upper Caves | Lost 3 parts (2n1w) 7500 | -4/Upper Caves | Attracted the attention of an 0b10 base 7531 | -4/Upper Caves | Attracted the attention of an 0b10 checkpoint 7540 | -4/Upper Caves | Discovered new exit (range 15) 7555 | -4/Upper Caves | Learned Research non-interactive machine intel 7561 | -4/Upper Caves | Entered another Upper Caves area 7565 | -4/Upper Caves | Lost 3 parts (3n) 7593 | -4/Upper Caves | Core integrity fell below 50% 7596 | -4/Upper Caves | Discovered new exit (range 8) 7600 | -4/Upper Caves | Build established: Hacker-Mutant 7601 | -4/Upper Caves | Entered Research 7601 | -3/Research | Evolved 2 slots: Utility x2 7602 | -3/Research | Loaded intel: 69 trap records 7603 | -3/Research | Loaded intel: 84 non-interactive machine locations 7734 | -3/Research | Fabricated Cld. Cesium-ion Thruster? 7818 | -3/Research | Spotted B-86 Titan 7848 | -3/Research | Lost 6 parts (1p1n4u) 7875 | -3/Research | Core integrity fell below 50% 7923 | -3/Research | Core integrity fell below 20% 7961 | -3/Research | Lost 11 parts (8n3u) 7989 | -3/Research | Spotted B-86 Titan 7996 | -3/Research | System corruption reached 10% 8001 | -3/Research | Destroyed by P-80 Master with Gamma Rifle Last Messages --------------- 07918_ Antigrav System destroyed. 07919_ G-67 Veteran suffers critical hit (Burn). 07919_ Knocked back. 07921_ Slug penetrates Wall. 07924_ Antigrav System destroyed. 07924_ P-80 Master resets S-43 Plague, system corruption cleaned. 07925_ U-05 Engineer builds a Wall. 07925_ Dropped Rnf. Antimatter Reactor. 07930_ Imp. Gyrokinetic Inverter destroyed. 07940_ System corrupted: Matter fused (-9). 07941_ ALERT: Security rotation in progress. 07944_ Acquired Q-thruster. 07956_ Connecting with Terminal... 07960_ P-80 Master resets K-01 Serf, system corruption cleaned. 07989_ Penetrated by Slug. 07989_ Q-thruster destroyed. 07994_ B-86 Titan activates siege mode. 07996_ Penetrated by Slug. 07996_ Acquired 2 matter. 08000_ Acquired Q-thruster. Map ----- +----------------------------------------------------+ | ??????????????# # # ]! #??? | | ??????????????# =# + #??# | | ??????????????# ?# # #??# | | ??????????????# ?# # #??# | | ?????????############??# # """ """ #??# | | ?????????# * #???# # """ """ #??# | | ?????????# ! #???# # """ """ #??# | | ?????????? ?#### # #### | | ???????????? ??##BB# + + | | ?????????????#+####""BB# ################# | | ?????????????# #???????????????? | | ?????????????# #???????????????? | | ?????????????# #???????????????? | | ?????????????# p #???????????????? | | ?????????????# #??????"""??????? | | ?????????????# !p #??????"""??????? | | ?????????????# !/ #??????"""??????? | | ?????????????#+##+####;# ^ #???????????????? | | ?????????????# # ^ #???????????????? | | ?????????????# ] #^^^^#???????????????? | | ?????????????# + ^^^ ???????????????? | | ?????????????# """"" # ^ ??????????????? | | ?????????????# """"" # ^ ?????????????? | | ?????????????# """"" # ^ ?????????????? | | ?????????????# ######"??????????????? | | ?????????????# @ #????????????????????? | | ?????????????####+######????????????????????? | | ????????????????# ?????????????????????????? | | ????????????????# ?????????????????????????? | | ????????????????# ????????????????????????? | | ???????????????? ????????????????????????? | | ????????????????####+???????????????????????? | | ????????????????????????????????????????????? | | ????????????????????????????????????????????? | | ????????????????????????????????????????????? | | ????????????????????????????????????????????? | | ????????????????????????????????????????????? | | ????????????????????????????????????????????? | | ????????????????????????????????????????????? | | ????????????????????????????????????????????? | | ????????????????????????????????????????????? | | ????????????????????????????????????????????? | | ????????????????????????????????????????????? | | ????????????????????????????????????????????? | | ????????????????????????????????????????????? | | ????????????????????????????????????????????? | | ????????????????????????????????????????????? | | ????????????????????????????????????????????? | | ???????????????????????????????????????"""??? | | ??????????????????????????????????????""""??? | +----------------------------------------------------+ Best States ------------- Heat Dissipation 46 Energy Generation 37 Energy Capacity 550 Matter Stores 300 Matter Capacity 300 Sight Range 22 Terrain Scan Density 10 Cloak Strength 3 Armor Coverage 150 Point Defense Rating 240 Evasion (%) 67 Recoil Reduction 6 Offensive Hacking 40 Defensive Hacking 14 Item Schematics ----------------- Hrd. Light Armor Plating | -9/Mines | Hacked Hacking Suite | -7/Factory | Scanalyzed Hvy. Armor Plating | -7/Factory | Hacked Cld. Cesium-ion Thruster | -5/Factory | Hacked Cld. Aerolev Unit | -5/Factory | Hacked Robot Schematics ------------------ None Fabricated ------------ L-41 Fighter | x3 | -7/Factory | Preloaded G-47 Trooper | x3 | -7/Factory | Preloaded Adv. Shield Generator | x2 | -6/Factory | Preloaded Cld. Cesium-ion Thruster | x1 | -3/Research Alien Tech Used ----------------- None Achievements -------------- My Command Is Your Wish Challenges ------------ None Game ------ Seed BlastAmuletClaw Manual? 0 Play Time 01:45:09 Cumulative 51.3 hours Start 2025.01.03 @ 17:10:00 End 2025.01.03 @ 18:54:44 Sessions 1 Manual Loads 0 Difficulty Rogue Special Mode None Game No. 104 Rogue 104 Adventurer 0 Explorer 0 Win Type - Total 0 Types 0/0/0/0/0/0/0/0/0 Lore% 18 Gallery% 33 Achievement% 30 Wizard Run 0 Options --------- Layout 0 ASCII 0 Keyboard 0 Movement Mouse Keybinds 0 Fullscreen 1 Font 24/Smallcaps Map View 76x50 Zoom Use 0% Tactical HUD 1 Map Filters NONE Filters NONE Steam 1 RUN: ec92ebcd-b06e-4e5c-9e8e-af4695e75fba